{"text_format":"3","workbook":"xlsx","n_sheets":1,"sheets":["公司名称XXX-报价报"],"read":"whole","date_system":"1900"}

{"sheet":"公司名称XXX-报价报","index":0,"n_rows":36,"n_cols":8,"rows_kept":36,"merged":[[0,0,0,7],[35,0,35,7]]}
["XXX公司-报价表"]
["序号","支出内容","计量单位","预算标准","数量控制","天数","小计","备注"]
["（一）","伙食费","元/人天",100,null,null,{"$f":"D3*E3*F3","v":0}]
["（二）","住宿费","元/人天","根据各属地标准，自行查询填写",null,null,{"$f":"D4*E4*F4","v":{"$error":"#VALUE!"}},"裁判员(含技术官员)、组委会工作人员，按《中央和国家机关差旅费管理办法》据实结算"]
["（三）","差旅费","元/人天",{"$nulls":3},0,"1.仅限异地裁判员(包括技术人员)和异地工作人员；\n2.按《中央和国家机关差旅费管理办法》据实结算"]
["（四）","劳务费"]
[1,"工作人员","元/人天",300,null,null,0,"组委会外聘工作人员"]
[2,"裁判员","元/人天",500,null,null,{"$f":"D8*E8*F8","v":0},"包括技术官员"]
["(五)","制播费","元/场","市场价","据实核定",null,{"$error":"#VALUE!"},"1.据实申报；\n2.包括图片、视频拍摄制作及直播"]
["（六）","场地设施保障费用"]
[1,"场地租用费","元/项天","≤20,000",null,null,{"$f":"D11*E11*F11","v":{"$error":"#VALUE!"}},"1.最高限额标准；\n2.包括赛事活动场地租用和与赛事活动直接相关的保障场所租用"]
[2,"场地布置费","元/项","市场价","据实核定",null,{"$f":"D12*E12*F12","v":{"$error":"#VALUE!"}},"据实申报，临时马房及临建设置等"]
[3,"信息系统租用费",{"$nulls":5},"包括赛事活动所需信息系统(含音响、录音等)的租赁、计分计时系统等、测试及技术人员维护"]
[3.1,"按场租用","元/场","≤150,000",null,null,{"$error":"#VALUE!"},"最高限额标准"]
[3.2,"按项租用","元/项天","≤30,000",null,null,{"$error":"#VALUE!"},"最高限额标准"]
[4,"工作人员服装费","元/套","≤200",null,null,{"$error":"#VALUE!"},"1.最高限额标准；\n2.包括裁判人员；\n3.比赛专用服装据实结算"]
[5,"赛事活动物料费","元/场","≤50,000",null,null,{"$error":"#VALUE!"},"1.是高限额标准；\n2.包括赛事活动证书、奖杯、奖牌、秩序册、指引牌、手举牌、胸卡、席卡以及竞赛组织管理耗材等"]
[6,"赛事活动器材费","元/项","市场价","据实核定",null,{"$error":"#VALUE!"},"据实申报"]
[7,"安全救生器材费","元/项","市场价","据实核定",null,{"$error":"#VALUE!"},"据实申报"]
[8,"场地设施维护费"]
[8.1,"专门设施维护费","元/项","市场价","据实核定",null,{"$error":"#VALUE!"},"据实申报"]
[8.2,"场地设施能耗费","元/项","市场价","据实核定",null,{"$error":"#VALUE!"},"据实申报"]
["（七）","安保费"]
[1,"安全保卫","元/场","≤100,000",null,null,{"$error":"#VALUE!"},"最高限额标准"]
[2,"医疗救护","元/场","≤50,000",null,null,{"$error":"#VALUE!"},"最高限额标准"]
[3,"赛事活动保险","元/场","市场价","据实核定",null,{"$error":"#VALUE!"},"据实申报"]
[4,"人员保险","元/人","市场价","据实核定",null,{"$error":"#VALUE!"},"1.据实申报；\n2.包括运动员和工作人员"]
["（九）","特殊支出"]
[1,"饮水费","元/天","市场价","据实核定",null,{"$error":"#VALUE!"},"据实申报"]
[2,"药品费","元/项","市场价","据实核定",null,{"$error":"#VALUE!"},"据实申报"]
[3,"通勤车辆保障费","元/台天","市场价","据实核定",null,{"$error":"#VALUE!"},"据实申报"]
["（十）","其他类目支出",null,"市场价","据实核定",null,null,"据实申报，自行添加"]
[null,"（如有请添加↓）",null,"市场价","据实核定",null,{"$error":"#VALUE!"}]
[]
["总计",{"$nulls":5},{"$f":"SUM(G3:G34)","v":{"$error":"#VALUE!"}}]
["备注：各参选单位只需填写绿色部分表格进行报价"]